Cogmind - Beta 16 @@@ ROGUE MODE // 2025.12.04 @ 09:38:41 Player: ForestDarkPsy Result: Self-destructed Performance ------------- Evolutions (1) 500 Regions Visited (3) 600 Robots Destroyed (24) 120 Value Destroyed (659) 659 Prototype IDs (2) 40 Alien Tech Used (0) 0 Bonus (0) 0 TOTAL SCORE: 1919 Bonus ------- None Cogmind --------- Core Integrity 281/400 Matter 247/300 Energy 265/265 System Corruption 1% Temperature Cool (0) Movement Treading (160) Location -9/Mines Parts ------- > --- POWER (1) -------- Improved Ion Engine > --- PROPULSION (3) --- Light Treads Light Treads Light Treads > --- UTILITY (3) ------ Improved Heat Sink High-capacity Storage Unit Seismic Detector > --- WEAPON (2) ------- Improved Medium Laser Heavy Assault Rifle > --- INVENTORY (20) --- Ion Engine Ion Engine Ion Engine Improved Ion Engine Light Treads Light Treads Light Treads Light Treads Light Treads Light Treads Improved Flight Unit Cooling System Large Storage Unit Improved Medium Laser Light Assault Rifle Heavy Assault Rifle Grenade Launcher Mini Grenade Launcher Peak State ------------ > --- POWER ------------ Improved Ion Engine > --- PROPULSION ------- Light Treads Light Treads Light Treads > --- UTILITY ---------- Improved Heat Sink High-capacity Storage Unit Seismic Detector > --- WEAPON ----------- Improved Medium Laser Heavy Assault Rifle > --- INVENTORY -------- Ion Engine Ion Engine Ion Engine Improved Ion Engine Light Treads Light Treads Light Treads Light Treads Light Treads Light Treads Improved Flight Unit Cooling System Large Storage Unit Improved Medium Laser Light Assault Rifle Heavy Assault Rifle Grenade Launcher Mini Grenade Launcher [Rating: 17] Favorites ----------- Power Improved Ion Engine Engine Improved Ion Engine Propulsion Light Treads Treads Light Treads Leg Aluminum Leg Utility Seismic Detector Device Seismic Detector Storage High-capacity Storage Unit Processor Transport Network Coupler Weapon Assault Rifle Energy Gun Improved Medium Laser Ballistic Gun Assault Rifle Build | -11 -10 -9 -9 ------- Run | Yrd Mat Mat Min Slots Evolved 2 | . . 2 . Power . | . . . . Propulsion 1 | . . 1 . Utility 1 | . . 1 . Weapon . | . . . . Parts Attached 27 | 7 7 11 2 Power 5 | 1 1 3 . Engine 5 | 1 1 3 . Core . | . . . . Reactor . | . . . . Propulsion 9 | 2 3 4 . Treads 6 | . 2 4 . Leg 3 | 2 1 . . Wheel . | . . . . Hover . | . . . . Flight . | . . . . Utility 7 | 2 3 1 1 Device 4 | 2 1 . 1 Storage 2 | . 2 . . Processor 1 | . . 1 . Hackware . | . . . . Protection . | . . . . Artifact . | . . . . Weapon 6 | 2 . 3 1 Energy Gun 1 | . . . 1 Energy Cannon . | . . . . Ballistic Gun 5 | 2 . 3 . Ballistic Cannon . | . . . . Launcher . | . . . . Special Weapon . | . . . . Impact Weapon . | . . . . Slashing Weapon . | . . . . Piercing Weapon . | . . . . Special Melee Weapon . | . . . . Unidentified Prototypes . | . . . . Parts Lost . | . . . . Power . | . . . . Propulsion . | . . . . Utility . | . . . . Weapon . | . . . . Highest Loss Streak . | . . . . To Critical Strikes . | . . . . Average Backups 11 | . 4 14 18 Power 2 | . . 2 4 Propulsion 4 | . . 6 7 Utility 2 | . 3 2 2 Weapon 2 | . . 2 5 Tool/Special . | . . . . Unused Backups 12 | . . 2 10 Power 1 | . . . 1 Propulsion 6 | . . 1 5 Utility 2 | . . 1 1 Weapon 3 | . . . 3 Tool/Special . | . . . . Average Slot Usage (%) 99 | . 100 99 100 Engine 11 | . 14 10 11 Treads 24 | . 2 32 33 Leg 7 | . 25 . . Device 16 | . 27 11 20 Storage 8 | . . 11 11 Processor 6 | . . 10 1 Energy Gun 1 | . . . 9 Ballistic Gun 22 | . 28 22 12 Peak Build Rating 17 | 7 7 14 17 Average Rating 11 | 4 6 12 16 On Entrance 7 | . 7 7 14 Avg Prop Armor Cover (%) . | . . . . Naked Turns . | . . . . Heaviest Build 55 | 11 30 52 55 Greatest Support 60 | 20 40 60 60 Greatest Overweight (x) 1 | 1 . 1 . Average Overweight (x) . | . . . . Largest Inventory Capacity 20 | 5 20 20 20 Average Capacity 15 | 5 5 19 20 Most Carried 20 | . 6 20 20 Average Carried 11 | . 4 15 18 Final Capacity 20 | 5 15 20 20 Final Carried 20 | . 6 20 18 Class Distribution -------------------- 56% | Mutant 43% | Scavenger-Mutant Dominant Class ---------------- Mutant | -10/Materials Scavenger-Mutant | -9/Materials Scavenger-Mutant | -9/Mines Resources | -11 -10 -9 -9 ----------- Run | Yrd Mat Mat Min Matter Collected 931 | 300 138 493 . Remotely 117 | 117 . . . Salvage Created 976 | 93 304 579 . Parts 61 | 5 15 41 . Haulers Intercepted 2 | . 1 1 . Recyclers Shooed 1 | 1 . . . Parts Field Recycled . | . . . . Retrieved Matter . | . . . . Parts Self-Destructed . | . . . . Prevented . | . . . . Parts Restored . | . . . . Kills | -11 -10 -9 -9 ------- Run | Yrd Mat Mat Min Combat Hostiles Destroyed 18 | . 5 13 . Guns 18 | . 5 13 . Classes Destroyed 7 | 2 3 2 . Tunneler 1 | 1 . . . Hauler 2 | . 1 1 . Recycler 1 | 1 . . . Watcher 2 | . 2 . . Swarmer 3 | . . 3 . Grunt 11 | . 5 6 . Sentry 4 | . . 4 . Best Kill Streak 4 | 2 2 4 . Combat Bots Only 4 | . 1 4 . Max Kills in Single Turn 1 | 1 1 1 . Gunslinging . | . . . . Exploded . | . . . . Melee . | . . . . Uniques/NPCs Destroyed . | . . . . Combat | -11 -10 -9 -9 -------- Run | Yrd Mat Mat Min Hostile Shots Fired 94 | . 16 78 . Missed 26 | . 6 20 . Hits 68 | . 10 58 . Projectile 68 | . 10 58 . Critical Strikes 2 | . . 2 . Damage Taken 833 | . 172 661 . Core 141 | . 22 119 . Absorbed by Shields . | . . . . Core Remaining (%) 95 | 100 91 . . Volleys Fired 81 | 5 25 51 . Largest 2 | 2 2 2 . Hottest 43 | 40 40 43 . Shots Fired 163 | 10 50 102 1 Gun 163 | 10 50 102 1 Cannon . | . . . . Launcher . | . . . . Special . | . . . . Kinetic 162 | 10 50 102 . Thermal 1 | . . . 1 Explosive . | . . . . Electromagnetic . | . . . . Robot Hit Streak 12 | 6 12 11 . Robot Miss Streak 4 | 2 4 4 . Penetration Max . | . . . . Secondary Targets . | . . . . Shots Hit Robots 113 | 7 30 76 . Core Hits 44 | 3 13 28 . Critical Kills . | . . . . Critical Parts Destroyed . | . . . . Critical Strikes . | . . . . Melee Attacks . | . . . . Impact . | . . . . Slashing . | . . . . Piercing . | . . . . Sneak Attacks . | . . . . Combat Hostiles . | . . . . Follow-up Attacks . | . . . . Damage Inflicted 1402 | 82 394 926 . Guns 1398 | 82 394 922 . Cannons . | . . . . Explosions . | . . . . Melee . | . . . . Ramming 4 | . . 4 . Kinetic 1398 | 82 394 922 . Thermal . | . . . . Explosive . | . . . . Electromagnetic . | . . . . Impact . | . . . . Slashing . | . . . . Piercing . | . . . . Highest Corruption 1 | . 1 1 1 Average Corruption 1 | . 1 1 1 Corruption Purged . | . . . . Corruption Blocked . | . . . . Effects 8 | . 1 5 2 Matter Fused 3 | . . 3 . Energy Discharges 3 | . 1 1 1 Data Loss (minor) 1 | . . 1 . Misfires 1 | . . . 1 Overload Shots . | . . . . Overflow Damage . | . . . . Projectiles . | . . . . Explosions . | . . . . Melee . | . . . . Knockbacks . | . . . . Impact . | . . . . Kinetic . | . . . . Secondary . | . . . . Self-Inflicted Damage . | . . . . Shots . | . . . . Rammed 2 | . . 1 1 Targets Rammed 2 | . . 1 1 Kicked . | . . . . Crushed . | . . . . Highest Temperature 17 | . 4 17 . Average Temperature 5 | . 2 6 . Received Heat Transfer 351 | . 69 282 . Siege Activations . | . . . . Martial Activations . | . . . . Shielding Activations . | . . . . Robots Disrupted . | . . . . Combat Hostiles . | . . . . Robots Corrupted . | . . . . Combat Hostiles . | . . . . Parts Fried . | . . . . Impact Corruptions . | . . . . Robots Melted . | . . . . Combat Hostiles . | . . . . Parts Melted . | . . . . Heat Transferred . | . . . . Parts Sabotaged . | . . . . Parts Stolen . | . . . . Parts Stripped . | . . . . Power Chain Reactions . | . . . . Alert | -11 -10 -9 -9 ------- Run | Yrd Mat Mat Min Maximum Alert Level . | . . . . Low Security (%) 100 | 100 100 100 100 Level 1 . | . . . . Level 2 . | . . . . Level 3 . | . . . . Level 4 . | . . . . Level 5 . | . . . . High Security . | . . . . Max Security . | . . . . Peak Influence 141 | 10 51 141 25 Initial 25 | . . 5 25 Average 37 | 1 12 57 4 Influence Increases 555 | 10 183 362 . Destroy 0b10 Robot/C 360 | . 100 260 . Destroy 0b10 Robot/NC 30 | 10 15 5 . Destroy Leader 98 | . 26 72 . Successful Hack 48 | . 41 7 . Destroy Structure 4 | . 1 3 . Lose Combat Pursuer 15 | . . 15 . Influence Decreases 555 | 10 170 308 67 Entered New Map 50 | . . 8 42 Time Decay 505 | 10 170 300 25 Squads Dispatched 3 | . 2 1 . Investigation . | . . . . Extermination . | . . . . Reinforcement 3 | . 2 1 . Assault . | . . . . Garrison . | . . . . Intercept . | . . . . Searches Triggered . | . . . . Construction Impeded . | . . . . Haulers Reinforced . | . . . . Active Scanning Responses . | . . . . Cargo Convoy Interrupts . | . . . . Stealth | -11 -10 -9 -9 --------- Run | Yrd Mat Mat Min Distress Signals 2 | . 2 . . Communications Jammed . | . . . . Distress Signals . | . . . . Times Spotted 26 | . 8 18 . Peak Tracking Total 3 | . 3 3 . Tactical Retreats 1 | . . 1 . Traps | -11 -10 -9 -9 ------- Run | Yrd Mat Mat Min Traps Triggered 6 | . 2 4 . Indirectly . | . . . . Trap Hack Attempts . | . . . . Triggered . | . . . . Disarmed . | . . . . Reprogrammed . | . . . . Reused . | . . . . Traps Extracted . | . . . . Installed . | . . . . Triggered . | . . . . Machines | -11 -10 -9 -9 ---------- Run | Yrd Mat Mat Min Machines Disabled . | . . . . Max in Single Turn . | . . . . Machines Repaired . | . . . . Machines Dismantled . | . . . . Machines Sabotaged . | . . . . Overloaded Fab Kills . | . . . . Hacking | -11 -10 -9 -9 --------- Run | Yrd Mat Mat Min Machines Accessed 6 | . 4 2 . Terminals 5 | . 4 1 . Fabricators . | . . . . Repair Stations . | . . . . Recycling Units . | . . . . Scanalyzers 1 | . . 1 . Garrison Access . | . . . . Total Hacks 22 | . 12 10 . Successful 16 | . 7 9 . Failed 6 | . 5 1 . Catastrophic . | . . . . Database Lockouts . | . . . . Manual 4 | . 4 . . Terminals 14 | . 12 2 . Fabricators . | . . . . Repair Stations . | . . . . Recycling Units . | . . . . Scanalyzers 8 | . . 8 . Garrison Access . | . . . . Terminal Hacks 7 | . 5 2 . Recycling Unit Index 1 | . 1 . . Alert Level 1 | . . 1 . Locate Traps 1 | . 1 . . Security Status 1 | . . 1 . Registered Components 1 | . 1 . . Zone Layout 2 | . 2 . . Fabricator Hacks . | . . . . Repair Station Hacks . | . . . . Recycling Unit Hacks . | . . . . Scanalyzer 7 | . . 7 . Insert Component 2 | . . 2 . Analyze 2 | . . 2 . Retrieve Study 3 | . . 3 . Garrison Access Hacks . | . . . . Unauthorized Hacks 2 | . 2 . . Terminals 2 | . 2 . . Botnet 2 | . 2 . . Fabricators . | . . . . Repair Stations . | . . . . Recycling Units . | . . . . Scanalyzers . | . . . . Garrison Access . | . . . . Data Cores Recovered . | . . . . Used . | . . . . Hacking Detections 4 | . 4 . . Full Trace Events . | . . . . Feedback Events . | . . . . Feedback Blocked . | . . . . Robot Schematics Acquired . | . . . . Robots Built . | . . . . Authchips . | . . . . Time . | . . . . Total Robot Build Rating . | . . . . Part Schematics Acquired 1 | . . 1 . Parts Built . | . . . . Authchips . | . . . . Time . | . . . . Total Part Build Rating . | . . . . Part Studies Acquired 3 | . . 3 . Parts Repaired . | . . . . Time . | . . . . Parts Recycled . | . . . . Recycled Matter . | . . . . Retrieved Matter . | . . . . Retrieved Components . | . . . . Parts Scanalyzed 1 | . . 1 . Part Schematics Acquired 1 | . . 1 . Parts Damaged . | . . . . Bothacking | -11 -10 -9 -9 ------------ Run | Yrd Mat Mat Min Used RIF Installer . | . . . . Robots Hacked . | . . . . Non-combat . | . . . . Combat . | . . . . Robot Hacks Applied . | . . . . Relay Couplers Released . | . . . . Fabnet Peak Effective % . | . . . . Robots Rewired . | . . . . Allies Hacked . | . . . . Hacks Repelled . | . . . . Allies | -11 -10 -9 -9 -------- Run | Yrd Mat Mat Min Total Allies . | . . . . Largest Group . | . . . . Highest-Rated Group . | . . . . Highest-Rated Ally . | . . . . Total Orders . | . . . . Ally Attacks . | . . . . Total Damage . | . . . . Kills . | . . . . Allies Corrupted . | . . . . Allies Melted . | . . . . Intel | -11 -10 -9 -9 ------- Run | Yrd Mat Mat Min Active Infowar (turns) 1479 | 16 405 868 190 Structural 372 | . 372 . . Seismic 1477 | 16 405 866 190 T.N.C. 877 | . . 865 12 Robot Analysis Total . | . . . . Derelict Logs Recovered . | . . . . Drone Launches . | . . . . Drone Recoveries . | . . . . Exploration | -11 -10 -9 -9 ------------- Run | Yrd Mat Mat Min Turns Passed 1524 | 61 405 868 190 Spaces Moved 740 | 32 198 395 115 Core 7 | 7 . . . Treads 525 | . 15 395 115 Legs 208 | 25 183 . . Wheels . | . . . . Hover . | . . . . Flight . | . . . . Fastest Speed 50 | 50 120 160 160 Average Speed 148 | 110 123 160 160 Slowest Speed 200 | 120 160 200 160 Overloaded Moves . | . . . . Propulsion Burnouts . | . . . . Robots Hopped . | . . . . Potential Cave-ins . | . . . . Cave-ins Triggered . | . . . . Exploration Rate (%) 26 | 4 37 38 26 Regions Visited 3 Branch Regions 1 Pre-discovered Areas . | . . . . Known Exits Taken . | . . . . Unknown Exits Taken 3 | 1 1 1 . Scrap Searched . | . . . . Spaces Dug . | . . . . Terrain Destroyed . | . . . . Melee . | . . . . Projectile . | . . . . AOE . | . . . . Terrain Rammed . | . . . . Walls Destroyed . | . . . . Machines Disabled . | . . . . Actions | -11 -10 -9 -9 --------- Run | Yrd Mat Mat Min Total 1004 | 44 310 530 120 Wait 120 | 1 66 53 . Move 737 | 31 197 394 115 Hop . | . . . . Pick Up 19 | . 8 11 . Fast Attach 13 | 7 2 4 . Attach 4 | . 1 2 1 Detach . | . . . . Swap 16 | . 5 10 1 Drop 12 | . 6 4 2 Fire 81 | 5 25 51 . Melee . | . . . . Ram . | . . . . Kick . | . . . . Crush 2 | . . 1 1 Escape Stasis . | . . . . Rewire . | . . . . Trap . | . . . . Miscellaneous . | . . . . Route ------- -11/Scrapyard -10/Materials -9/Materials (discovered 2 exits: [*Mat] / [*Min]) -9/Mines History --------- Turn | Location | Event 10 | -11/Scrapyard | Discovered new exit (range 15) 62 | -11/Scrapyard | Entered Materials 302 | -10/Materials | Build established: Mutant 414 | -10/Materials | Discovered new exit (range 8) 467 | -10/Materials | Entered another Materials area 467 | -9/Materials | Evolved 2 slots: Propulsion x1, Utility x1 708 | -9/Materials | Discovered new exit (range 12) 1098 | -9/Materials | Discovered new exit (range 16) 1186 | -9/Materials | Build established: Scavenger-Mutant 1335 | -9/Materials | Entered Mines 1525 | -9/Mines | Self-destructed Last Messages --------------- 01319_ Triggered Blade Trap. 01319_ Massive razor-sharp blades shoot up from within the floor. 01319_ Imp. Ion Engine severed. 01320_ U-05 Engineer lays Concrete. 01321_ Acquired Lgt. Treads+. 01322_ Slammed into K-01 Serf. 01324_ Acquired Imp. Ion Engine. 01332_ K-01 Serf cleans the Terminal. LOCATION=UNKNOWN GOAL=ESCAPE 01336_ K-01 Serf collects debris. 01347_ Discarded Transport Network Coupler. 01348_ Dropped Faulty Imp. Flight Unit. 01349_ K-01 Serf collects debris. 01353_ Slammed into K-01 Serf. 01356_ K-01 Serf collects debris. 01395_ System corrupted: FCS attempts to trigger Imp. Medium Laser. 01395_ System corrupted: Imp. Medium Laser misfires. 01464_ System corrupted: Energy discharge (-103). [Achievement: Deductive Reasoning] Map ----- +----------------------------------------------------+ | ??????????????????????????????????????????? | | ??????????????????????????????????????????? | | ??????????????????????????????????????????? | | ??????????????????????????????????????????? | | ??????????????????????????????????????????? | | ??????????????????????????????????????????? | | ??????????????????????????????????????????? | | ??????????????????????????????????????????? | | ??????????????????????????????????????????? | | ??????????????????????????????????????????? | | ??????????????????????????????????????????? | | ??????????????????????????????????????????? | | ??????????????????????????????????????????? | | ??????????????????????????????????????????? | | ??????????????????????????????????????????? | | ??????????????????????????????????????????? | | ??????????????????????????????????????????? | | ??????????????????????????????????????????? | | ???????????????????###????????????????????? | | ?????????????????## ##???????????????????? | | ?????????????????# ##??????????????????? | | ?????????????????# ###????????????????? | | ????????????????## ?????????????????? | | ???????????????## ???????????????????? | | ???????????????# ?????????????????????? | | ??????????????## @#??????????????????????? | | ????# ### ##??????????????????????? | | ???# #???????????????????????? | | ??# #### #???????????????????????? | | ??# ?????# #???????????????????????? | | ???# ### #???????????????????????? | | ?????# #???????????????????????? | | ??????# ### #???????????????????????? | | ??????#????????# #???????????????????????? | | ???????????????# #???????????????????????? | | ???????????????# #???????????????????????? | | ?????????????### #???????????????????????? | | ????????????## ########????????????????? | | ????????????# #????????????????? | | ????????????# """ #????????????????? | | ???######???# """ ## #????????????????? | | ??## ##??# """ ## #????????????????? | | ??# #??## ### #????????????????? | | ??# #???# ##?# #????????????????? | | ??## ##??# ##??# #????????????????? | | ???#### #### #???# #????????????????? | | ??????## ## ##???# #????????????????? | | ???????## #????# #????????????????? | | ????????# #????# #????????????????? | | ????????## ##???# #????????????????? | +----------------------------------------------------+ Best States ------------- Heat Dissipation 42 Energy Generation 12 Energy Capacity 265 Matter Stores 300 Matter Capacity 300 Sight Range 16 Terrain Scan Density 10 Evasion (%) 55 Recoil Reduction 3 Item Schematics ----------------- Imp. Flight Unit | -9/Materials | Scanalyzed Robot Schematics ------------------ None Fabricated ------------ Nothing Repaired ---------- Nothing Studied --------- Lgt. Treads | -9/Materials | Hacked Hvy. Assault Rifle | -9/Materials | Hacked Mni. Grenade Launcher | -9/Materials | Hacked Alien Tech Used ----------------- None Achievements -------------- Deductive Reasoning Item+ Challenges ------------ None Game ------ Seed SpectralPiercelightParser Manual? 0 Play Time 00:19:25 Cumulative 197.4 hours Start 2025.12.03 @ 08:11:58 End 2025.12.04 @ 09:38:41 Sessions 3 Manual Loads 0 Difficulty Rogue Special Mode None Game No. 179 Rogue 179 Adventurer 0 Explorer 0 Win Type - Total 0 Types 0/0/0/0/0/0/0/0/0/0 Lore% 26 Gallery% 40 Achievement% 23 Wizard Run 0 Options --------- Layout 0 ASCII 1 Keyboard 0 Movement Mouse Keybinds 0 Fullscreen 1 Font 18/SmallcapsGlow Map View 76x50 Zoom Use 0% Tactical HUD 1 Map Filters NONE Filters NONE Steam 1 RUN: bc5ac279-9ac8-444b-8b1d-5e37469e7c45